[Event "36th German Seniors-ch-65 2024"]
[Site "Bad Wildungen"]
[Date "2024.08.25"]
[Round "3.9"]
[White "Boeven, Manfred"]
[Black "Kaeding, Rainer"]
[Result "0-1"]
[ECO "D01"]
[WhiteElo "1998"]
[BlackElo "2116"]
[Annotator "RC"]
[PlyCount "42"]
[EventDate "2024.08.22"]
[EventType "swiss"]
[EventCountry "GER"]
[SourceTitle "playchess.com"]
[Source "ChessBase"]
[SourceQuality "1"]
[TimeControl "40/5400+30:1800+30"]

1. d4 {[%emt 0:00:06]} d5 {[%emt 0:00:16]} 2. Nc3 {[%emt 0:00:12]} Nf6 {[%emt 0:00:34]} 3. Bg5 {[%emt 0:00:17]} Nbd7 {[%emt 0:00:30]} 4. e3 {[%emt 0:00:21]} h6 {[%emt 0:00:14]} 5. Bh4 {[%emt 0:00:17]} e6 {[%emt 0:00:39]} 6. Nf3 {[%emt 0:00:13]} c5 {[%emt 0:00:30]} 7. Be2 {[%emt 0:00:11]} a6 {[%emt 0:01:20]} 8. a4 {[%emt 0:01:27]} Qb6 {[%emt 0:02:15]} 9. a5 {[%emt 0:08:12]} Qxb2 {[%emt 0:05:30]} 10. Na4 {[%emt 0:00:31]} Qb4+ {[%emt 0:00:17]} 11. c3 {[%emt 0:00:15]} Qxa5 {[%emt 0:00:33]} 12. O-O {[%emt 0:02:40]} Qc7 {[%emt 0:02:03]} 13. Bg3 {[%emt 0:07:09]} Bd6 {[%emt 0:00:31]} 14. dxc5 {[%emt 0:05:38]} Bxg3 {[%emt 0:01:56]} 15. fxg3 {[%emt 0:00:19]} Nxc5 {[%emt 0:00:26]} 16. Rb1 {[%emt 0:07:54]} b5 {[%emt 0:02:25]} 17. Nxc5 {[%emt 0:03:50]} Qxc5 {[%emt 0:00:09]} 18. Qd3 {[%emt 0:01:44]} O-O {[%emt 0:03:12]} 19. Ne5 {[%emt 0:05:11]} Nd7 {[%emt 0:02:54]} 20. Nxd7 {[%emt 0:03:04]} Bxd7 {[%emt 0:00:07]} 21. Rb4 {[%emt 0:00:16]} Rac8 {[%emt 0:01:37]} 0-1

[Event "36th German Seniors-ch-65 2024"]
[Site "Bad Wildungen"]
[Date "2024.08.25"]
[Round "3.10"]
[White "Namyslo, Holger"]
[Black "Kalwa, Norbert"]
[Result "1-0"]
[ECO "B27"]
[WhiteElo "2140"]
[BlackElo "1971"]
[Annotator "ChessBase"]
[PlyCount "35"]
[EventDate "2024.08.22"]
[EventType "swiss"]
[EventCountry "GER"]
[SourceTitle "playchess.com"]
[Source "ChessBase"]
[SourceQuality "1"]
[TimeControl "40/5400+30:1800+30"]

1. e4 {[%emt 0:00:08]} g6 {[%emt 0:00:06]} 2. d4 {[%emt 0:00:06]} Bg7 {[%emt 0:00:05]} 3. Nf3 {[%emt 0:00:07]} c5 {[%emt 0:01:08]} 4. c3 {[%emt 0:00:28]} cxd4 {[%emt 0:00:09]} 5. cxd4 {[%emt 0:00:06]} d5 {[%emt 0:00:05]} 6. e5 {[%emt 0:00:58]} Nc6 {[%emt 0:00:06]} 7. Bb5 {[%emt 0:02:19]} Nh6 {[%emt 0:02:15]} 8. O-O {[%emt 0:01:16]} O-O {[%emt 0:00:43]} 9. Re1 {[%emt 0:04:04]} Bg4 {[%emt 0:01:22]} 10. Bxc6 {[%emt 0:00:21]} bxc6 {[%emt 0:00:04]} 11. Nbd2 {[%emt 0:00:29]} Nf5 {[%emt 0:05:10]} 12. h3 {[%emt 0:00:58]} Bxf3 {[%emt 0:01:30]} 13. Nxf3 {[%emt 0:00:14]} f6 {[%emt 0:02:24]} 14. Bf4 {[%emt 0:04:06]} g5 {[%emt 0:11:23]} 15. Qc2 {[%emt 0:11:23]} fxe5 {[%emt 0:13:51]} 16. Bxe5 {[%emt 0:00:49]} Qd7 {[%emt 0:10:14]} 17. Nxg5 {[%emt 0:02:40]} h6 {[%emt 0:02:54]} 18. Bxg7 {[%emt 0:04:45]} 1-0

[Event "36th German Seniors-ch-65 2024"]
[Site "Bad Wildungen"]
[Date "2024.08.25"]
[Round "3.11"]
[White "Schrems, Hermann"]
[Black "Barten, Ralf"]
[Result "1-0"]
[ECO "D11"]
[WhiteElo "2118"]
[BlackElo "1966"]
[Annotator "RC"]
[PlyCount "91"]
[EventDate "2024.08.22"]
[EventType "swiss"]
[EventCountry "GER"]
[SourceTitle "playchess.com"]
[Source "ChessBase"]
[SourceQuality "1"]
[TimeControl "40/5400+30:1800+30"]

1. d4 {[%emt 0:00:03]} d5 {[%emt 0:00:08]} 2. Nf3 {[%emt 0:00:07]} Nf6 {[%emt 0:00:15]} 3. g3 {[%emt 0:00:07]} c6 {[%emt 0:01:05]} 4. Bg2 {[%emt 0:00:07]} Bf5 {[%emt 0:00:43]} 5. Nbd2 {[%emt 0:01:57]} e6 {[%emt 0:02:01]} 6. c4 {[%emt 0:01:59]} Nbd7 {[%emt 0:01:37]} 7. O-O {[%emt 0:00:34]} Be7 {[%emt 0:00:43]} 8. b3 {[%emt 0:00:33]} O-O {[%emt 0:01:59]} 9. Bb2 {[%emt 0:01:33]} h6 {[%emt 0:01:26]} 10. Qc1 {[%emt 0:00:41]} Ne4 {[%emt 0:06:28]} 11. Rd1 {[%emt 0:05:16]} Rc8 {[%emt 0:04:13]} 12. Ne5 {[%emt 0:08:36]} Nxd2 {[%emt 0:04:30]} 13. Rxd2 {[%emt 0:01:25]} Qc7 {[%emt 0:06:50]} 14. Nxd7 {[%emt 0:00:09]} Qxd7 {[%emt 0:00:03]} 15. Ba3 {[%emt 0:03:07]} Rfd8 {[%emt 0:03:11]} 16. Bxe7 {[%emt 0:00:48]} Qxe7 {[%emt 0:03:10]} 17. Qb2 {[%emt 0:01:05]} b6 {[%emt 0:04:19]} 18. Rc1 {[%emt 0:01:54]} Be4 {[%emt 0:09:23]} 19. Bf1 {[%emt 0:06:09]} c5 {[%emt 0:03:40]} 20. cxd5 {[%emt 0:08:01]} Bxd5 {[%emt 0:00:38]} 21. dxc5 {[%emt 0:01:37]} Rxc5 {[%emt 0:04:57]} 22. Rxc5 {[%emt 0:00:13]} bxc5 {[%emt 0:00:02]} 23. Qc1 {[%emt 0:02:33]} a5 {[%emt 0:04:47]} 24. Rc2 {[%emt 0:04:15]} Rc8 {[%emt 0:01:44]} 25. f3 {[%emt 0:01:43]} f5 {[%emt 0:05:55]} 26. Bg2 {[%emt 0:03:52]} Qa7 {[%emt 0:04:51]} 27. e4 {[%emt 0:01:25]} Bb7 {[%emt 0:02:00]} 28. Qe3 {[%emt 0:00:15]} fxe4 {[%emt 0:05:03]} 29. fxe4 {[%emt 0:00:07]} Qa8 {[%emt 0:02:51]} 30. Bh3 {[%emt 0:03:03]} Re8 {[%emt 0:03:12]} 31. e5 {[%emt 0:02:33]} a4 {[%emt 0:00:47]} 32. Rxc5 {[%emt 0:06:15]} axb3 {[%emt 0:00:18]} 33. axb3 {[%emt 0:00:02]} Bd5 {[%emt 0:00:58]} 34. Rc1 {[%emt 0:11:26]} Qa2 {[%emt 0:02:22]} 35. b4 {[%emt 0:01:44]} Qb2 {[%emt 0:02:54]} 36. Qc3 {[%emt 0:00:38]} Qxc3 {[%emt 0:00:15]} 37. Rxc3 {[%emt 0:00:02]} Rb8 {[%emt 0:00:07]} 38. Bf1 {[%emt 0:23:36]} Rxb4 {[%emt 0:00:52]} 39. Bd3 {[%emt 0:00:00]} Rb8 {[%emt 0:05:54]} 40. Bg6 {[%emt 0:00:00]} Rf8 {[%emt 0:00:50]} 41. h4 {[%emt 0:09:22]} Rf3 {[%emt 0:31:03]} 42. Rc8+ {[%emt 0:06:23]} Rf8 {[%emt 0:00:03]} 43. Bh7+ {[%emt 0:00:06]} Kf7 {[%emt 0:02:47]} 44. Rc7+ {[%emt 0:00:08]} Ke8 {[%emt 0:00:07]} 45. Rxg7 {[%emt 0:00:09]} Rf7 {[%emt 0:00:00]} 46. Bg6 {[%emt 0:17:52]} 1-0

[Event "36th German Seniors-ch-65 2024"]
[Site "Bad Wildungen"]
[Date "2024.08.25"]
[Round "3.12"]
[White "Zimmermann, Rolf"]
[Black "Steingrobe, Udo"]
[Result "1-0"]
[ECO "A25"]
[WhiteElo "2107"]
[BlackElo "1965"]
[Annotator "RC"]
[PlyCount "68"]
[EventDate "2024.08.22"]
[EventType "swiss"]
[EventCountry "GER"]
[SourceTitle "playchess.com"]
[Source "ChessBase"]
[SourceQuality "1"]
[TimeControl "40/5400+30:1800+30"]

1. c4 {[%emt 0:00:11]} e5 {[%emt 0:00:04]} 2. Nc3 {[%emt 0:00:17]} Nc6 {[%emt 0:00:10]} 3. g3 {[%emt 0:01:30]} d6 {[%emt 0:01:21]} 4. Bg2 g6 {[%emt 0:00:30]} 5. e3 Bg7 {[%emt 0:00:30]} 6. Nge2 Nh6 {[%emt 0:00:30]} 7. Nd5 O-O {[%emt 0:00:30]} 8. h3 Nf5 {[%emt 0:00:30]} 9. d3 Be6 {[%emt 0:00:30]} 10. b3 Qd7 {[%emt 0:00:30]} 11. Bb2 Rae8 {[%emt 0:00:30]} 12. Qd2 a5 {[%emt 0:00:30]} 13. Nec3 Nfe7 {[%emt 0:00:30]} 14. Nb5 Bxd5 {[%emt 0:00:30]} 15. cxd5 Nb8 {[%emt 0:00:30]} 16. Nc3 c6 {[%emt 0:00:30]} 17. dxc6 Nbxc6 {[%emt 0:00:30]} 18. Ne2 b5 {[%emt 0:00:30]} 19. O-O Rc8 {[%emt 0:00:30]} 20. Rac1 Rc7 {[%emt 0:00:30]} 21. Nc3 Na7 {[%emt 0:00:30]} 22. Nd5 Nxd5 {[%emt 0:00:30]} 23. Bxd5 b4 {[%emt 0:00:30]} 24. Rxc7 Qxc7 {[%emt 0:00:30]} 25. Rc1 Qd7 {[%emt 0:00:30]} 26. Kg2 Rc8 {[%emt 0:00:30]} 27. Rc4 Nb5 {[%emt 0:00:30]} 28. Qc2 Rxc4 {[%emt 0:00:30]} 29. Qxc4 Nc7 {[%emt 0:00:30]} 30. a3 Qb5 {[%emt 0:00:30]} 31. Bxf7+ Kf8 {[%emt 0:00:30]} 32. Qxc7 Qxd3 {[%emt 0:00:30]} 33. Bc4 Qd2 {[%emt 0:00:30]} 34. Kh2 d5 {[%emt 0:00:30]} 1-0

[Event "36th German Seniors-ch-65 2024"]
[Site "Bad Wildungen"]
[Date "2024.08.25"]
[Round "3.13"]
[White "Zschunke, Werner"]
[Black "Dekan, Hans"]
[Result "0-1"]
[ECO "A11"]
[WhiteElo "1966"]
[BlackElo "2079"]
[Annotator "NA RC"]
[PlyCount "64"]
[EventDate "2024.08.22"]
[EventType "swiss"]
[EventCountry "GER"]
[SourceTitle "playchess.com"]
[Source "ChessBase"]
[SourceQuality "1"]
[TimeControl "40/5400+30:1800+30"]

1. c4 {[%emt 0:00:02]} c6 {[%emt 0:00:13]} 2. g3 {[%emt 0:00:40]} d5 {[%emt 0:00:21]} 3. cxd5 {[%emt 0:00:20]} cxd5 {[%emt 0:01:55]} 4. d4 {[%emt 0:00:21]} Bf5 {[%emt 0:01:28]} 5. Bg2 {[%emt 0:00:34]} e6 {[%emt 0:00:21]} 6. Nf3 {[%emt 0:00:54]} Nc6 {[%emt 0:01:22]} 7. Nc3 {[%emt 0:01:06]} h6 {[%emt 0:05:38]} 8. a3 {[%emt 0:02:33]} Nf6 {[%emt 0:01:55]} 9. O-O {[%emt 0:00:43]} Rc8 {[%emt 0:01:33]} 10. e3 {[%emt 0:12:15]} Bd6 {[%emt 0:02:57]} 11. Bd2 {[%emt 0:04:44]} O-O {[%emt 0:02:32]} 12. Nh4 {[%emt 0:03:35]} Bh7 {[%emt 0:01:45]} 13. f4 {[%emt 0:01:03]} Qd7 {[%emt 0:19:53]} 14. Nf3 {[%emt 0:08:54]} Ne4 {[%emt 0:04:45]} 15. Ne5 {[%emt 0:09:59]} Bxe5 {[%emt 0:00:42]} 16. Nxe4 {[%emt 0:03:33]} Bxd4 {[%emt 0:03:09]} 17. exd4 {[%emt 0:05:23]} Bxe4 {[%emt 0:01:24]} 18. Bc3 {[%emt 0:03:19]} Rfe8 {[%emt 0:08:08]} 19. Rf2 {[%emt 0:00:56]} Bxg2 {[%emt 0:00:33]} 20. Kxg2 {[%emt 0:00:08]} Ne7 {[%emt 0:00:15]} 21. h4 {[%emt 0:03:32]} Nf5 {[%emt 0:00:24]} 22. Qd3 {[%emt 0:01:45]} Nd6 {[%emt 0:01:05]} 23. Rc2 {[%emt 0:07:46]} Ne4 {[%emt 0:03:21]} 24. Rac1 {[%emt 0:01:00]} Rc6 {[%emt 0:02:46]} 25. Be1 {[%emt 0:01:47]} Rec8 {[%emt 0:00:27]} 26. b4 {[%emt 0:03:39]} R8c7 {[%emt 0:03:47]} 27. Rxc6 {[%emt 0:01:42]} Rxc6 {[%emt 0:00:07]} 28. Rxc6 {[%emt 0:00:34]} Qxc6 {[%emt 0:00:06]} 29. Bd2 {[%emt 0:07:10]} Qc4 {[%emt 0:04:14]} 30. Qxc4 {[%emt 0:03:40]} dxc4 {[%emt 0:00:06]} 31. Bc1 {[%emt 0:00:14]} h5 {[%emt 0:01:40]} 32. f5 {[%emt 0:02:10]} exf5 {[%emt 0:00:38]} 0-1

[Event "36th German Seniors-ch-65 2024"]
[Site "Bad Wildungen"]
[Date "2024.08.25"]
[Round "3.14"]
[White "Schubert, Hans Joachim"]
[Black "Wenner, Tobias"]
[Result "1/2-1/2"]
[ECO "B40"]
[WhiteElo "2064"]
[BlackElo "2067"]
[Annotator "NA RC"]
[PlyCount "33"]
[EventDate "2024.08.22"]
[EventType "swiss"]
[EventCountry "GER"]
[SourceTitle "playchess.com"]
[Source "ChessBase"]
[SourceQuality "1"]
[TimeControl "40/5400+30:1800+30"]

1. e4 {[%emt 0:00:05]} c5 {[%emt 0:00:38]} 2. Nf3 {[%emt 0:00:03]} e6 {[%emt 0:00:10]} 3. d4 {[%emt 0:00:16]} cxd4 {[%emt 0:00:06]} 4. Nxd4 {[%emt 0:00:08]} Nf6 {[%emt 0:00:07]} 5. Bd3 {[%emt 0:00:56]} Nc6 {[%emt 0:00:45]} 6. c3 {[%emt 0:00:26]} d5 {[%emt 0:01:01]} 7. exd5 {[%emt 0:00:25]} Qxd5 {[%emt 0:06:20]} 8. Nf3 {[%emt 0:01:49]} Be7 {[%emt 0:02:27]} 9. O-O {[%emt 0:02:18]} O-O {[%emt 0:00:07]} 10. Be2 {[%emt 0:00:08]} b6 {[%emt 0:03:26]} 11. Qa4 {[%emt 0:01:14]} Bb7 {[%emt 0:02:01]} 12. Rd1 {[%emt 0:00:24]} Qf5 {[%emt 0:07:43]} 13. Qf4 {[%emt 0:03:21]} Qxf4 {[%emt 0:05:52]} 14. Bxf4 {[%emt 0:00:03]} Rfd8 {[%emt 0:00:12]} 15. Nbd2 {[%emt 0:00:40]} h6 {[%emt 0:05:33]} 16. Nb3 {[%emt 0:03:26]} Rxd1+ {[%emt 0:08:40]} 17. Rxd1 {[%emt 0:00:17]} 1/2-1/2

[Event "36th German Seniors-ch-65 2024"]
[Site "Bad Wildungen"]
[Date "2024.08.25"]
[Round "3.15"]
[White "Brueggemann, Joachim"]
[Black "Dittmar, Michael"]
[Result "1-0"]
[ECO "C12"]
[WhiteElo "2267"]
[BlackElo "1791"]
[Annotator "RC"]
[PlyCount "73"]
[EventDate "2024.08.22"]
[EventType "swiss"]
[EventCountry "GER"]
[SourceTitle "playchess.com"]
[Source "ChessBase"]
[SourceQuality "1"]
[TimeControl "40/5400+30:1800+30"]

1. e4 {[%emt 0:00:02]} e6 {[%emt 0:00:26]} 2. d4 {[%emt 0:00:06]} d5 {[%emt 0:00:06]} 3. Nc3 {[%emt 0:00:05]} Nf6 {[%emt 0:00:16]} 4. Bg5 {[%emt 0:00:12]} h6 {[%emt 0:00:41]} 5. Bxf6 {[%emt 0:00:06]} Qxf6 {[%emt 0:00:06]} 6. Nf3 {[%emt 0:00:13]} Bb4 {[%emt 0:02:29]} 7. e5 {[%emt 0:03:26]} Qd8 {[%emt 0:00:39]} 8. Qd3 {[%emt 0:02:34]} Bd7 {[%emt 0:01:27]} 9. a3 {[%emt 0:00:55]} Be7 {[%emt 0:00:22]} 10. Qe3 {[%emt 0:06:49]} a6 {[%emt 0:00:44]} 11. Bd3 {[%emt 0:01:56]} Nc6 {[%emt 0:01:02]} 12. h4 {[%emt 0:01:30]} Na7 {[%emt 0:06:05]} 13. h5 {[%emt 0:06:57]} Rc8 {[%emt 0:01:56]} 14. b4 {[%emt 0:05:49]} Nb5 {[%emt 0:04:27]} 15. Ne2 {[%emt 0:12:34]} Na7 {[%emt 0:02:21]} 16. Nd2 {[%emt 0:08:30]} Bb5 {[%emt 0:02:08]} 17. O-O {[%emt 0:02:50]} Bxd3 {[%emt 0:12:36]} 18. Qxd3 {[%emt 0:00:06]} Ra8 {[%emt 0:00:45]} 19. f4 {[%emt 0:00:10]} Qd7 {[%emt 0:02:47]} 20. f5 {[%emt 0:02:30]} Kd8 {[%emt 0:59:07]} 21. fxe6 {[%emt 0:01:57]} Qxe6 {[%emt 0:00:00]} 22. Qf3 {[%emt 0:02:31]} c6 {[%emt 0:00:00]} 23. Qxf7 {[%emt 0:00:43]} Qxf7 {[%emt 0:00:00]} 24. Rxf7 {[%emt 0:00:02]} Rg8 {[%emt 0:00:00]} 25. Nf3 {[%emt 0:06:09]} Nb5 {[%emt 0:00:00]} 26. Nf4 {[%emt 0:04:30]} Ke8 {[%emt 0:00:00]} 27. e6 {[%emt 0:01:29]} Nd6 {[%emt 0:00:00]} 28. Ne5 {[%emt 0:00:10]} Bf6 {[%emt 0:00:00]} 29. Nfg6 {[%emt 0:02:32]} a5 {[%emt 0:00:00]} 30. bxa5 {[%emt 0:03:41]} Rxa5 {[%emt 0:00:00]} 31. Rd7 {[%emt 0:00:25]} Ne4 {[%emt 0:00:00]} 32. Rxb7 {[%emt 0:00:11]} Ra8 {[%emt 0:00:00]} 33. Rab1 {[%emt 0:00:51]} Rc8 {[%emt 0:00:00]} 34. Ra7 {[%emt 0:01:41]} Nc3 {[%emt 0:00:00]} 35. Rbb7 {[%emt 0:00:15]} Ne2+ {[%emt 0:00:00]} 36. Kf2 {[%emt 0:00:27]} Nxd4 {[%emt 0:00:00]} 37. Re7+ {[%emt 0:00:09]} 1-0

[Event "36th German Seniors-ch-65 2024"]
[Site "Bad Wildungen"]
[Date "2024.08.25"]
[Round "3.16"]
[White "Nehmert, Ulrich"]
[Black "Kroencke, Manfred"]
[Result "1-0"]
[ECO "D36"]
[WhiteElo "2255"]
[BlackElo "2008"]
[Annotator "ChessBase"]
[PlyCount "66"]
[EventDate "2024.08.22"]
[EventType "swiss"]
[EventCountry "GER"]
[SourceTitle "playchess.com"]
[Source "ChessBase"]
[SourceQuality "1"]
[TimeControl "40/5400+30:1800+30"]

1. d4 {[%emt 0:00:05]} d5 {[%emt 0:00:12]} 2. c4 {[%emt 0:00:08]} e6 {[%emt 0:00:10]} 3. Nc3 {[%emt 0:00:14]} Nf6 {[%emt 0:00:14]} 4. cxd5 {[%emt 0:00:11]} exd5 {[%emt 0:00:14]} 5. Bg5 {[%emt 0:00:04]} c6 {[%emt 0:00:38]} 6. e3 {[%emt 0:00:30]} Be7 {[%emt 0:00:52]} 7. Bd3 {[%emt 0:02:01]} O-O {[%emt 0:02:35]} 8. h3 {[%emt 0:00:57]} Nbd7 {[%emt 0:01:01]} 9. Qc2 {[%emt 0:01:07]} Re8 {[%emt 0:00:50]} 10. Nf3 {[%emt 0:00:46]} Nf8 {[%emt 0:00:39]} 11. O-O {[%emt 0:01:31]} Nh5 {[%emt 0:06:15]} 12. Bxe7 {[%emt 0:01:08]} Qxe7 {[%emt 0:00:32]} 13. a3 {[%emt 0:02:17]} g6 {[%emt 0:01:13]} 14. b4 {[%emt 0:02:30]} a6 {[%emt 0:02:41]} 15. Rfe1 {[%emt 0:05:27]} f5 {[%emt 0:08:06]} 16. Ne5 {[%emt 0:02:23]} Nd7 {[%emt 0:02:54]} 17. f4 {[%emt 0:01:02]} Nxe5 {[%emt 0:02:37]} 18. dxe5 {[%emt 0:01:20]} Ng3 {[%emt 0:02:17]} 19. Kh2 {[%emt 0:04:11]} Ne4 {[%emt 0:01:29]} 20. Bxe4 {[%emt 0:05:43]} fxe4 {[%emt 0:02:04]} 21. Ne2 {[%emt 0:07:33]} Be6 {[%emt 0:03:28]} 22. Nd4 {[%emt 0:00:39]} Rac8 {[%emt 0:00:24]} 23. Qc5 {[%emt 0:01:54]} Rc7 {[%emt 0:03:43]} 24. Rac1 {[%emt 0:03:06]} Qxc5 {[%emt 0:04:45]} 25. bxc5 {[%emt 0:00:04]} Bc8 {[%emt 0:02:32]} 26. g4 {[%emt 0:01:21]} g5 {[%emt 0:07:01]} 27. Kg3 {[%emt 0:05:35]} h6 {[%emt 0:00:59]} 28. Rg1 {[%emt 0:03:34]} Rg7 {[%emt 0:04:00]} 29. Rcf1 {[%emt 0:01:08]} Bd7 {[%emt 0:04:14]} 30. Rb1 {[%emt 0:09:21]} Bc8 {[%emt 0:00:15]} 31. Kh2 {[%emt 0:00:15]} Rf7 {[%emt 0:02:49]} 32. Rgf1 {[%emt 0:00:50]} Ree7 {[%emt 0:02:13]} 33. Kg3 {[%emt 0:01:03]} Rg7 {[%emt 0:04:59]} 1-0

[Event "36th German Seniors-ch-65 2024"]
[Site "Bad Wildungen"]
[Date "2024.08.25"]
[Round "3.17"]
[White "Vatter, Hans-Joachim"]
[Black "Szymaniak, Horst"]
[Result "1/2-1/2"]
[ECO "B53"]
[WhiteElo "2212"]
[BlackElo "1996"]
[Annotator "RC"]
[PlyCount "93"]
[EventDate "2024.08.22"]
[EventType "swiss"]
[EventCountry "GER"]
[SourceTitle "playchess.com"]
[Source "ChessBase"]
[SourceQuality "1"]
[TimeControl "40/5400+30:1800+30"]

1. e4 {[%emt 0:00:11]} c5 {[%emt 0:00:05]} 2. Nf3 {[%emt 0:01:04]} d6 {[%emt 0:00:51]} 3. d4 {[%emt 0:01:48]} cxd4 {[%emt 0:02:04]} 4. Qxd4 {[%emt 0:00:54]} Nc6 {[%emt 0:00:33]} 5. Bb5 {[%emt 0:00:12]} Bd7 {[%emt 0:01:55]} 6. Bxc6 {[%emt 0:01:45]} bxc6 {[%emt 0:00:03]} 7. c4 {[%emt 0:00:19]} Nf6 {[%emt 0:02:40]} 8. O-O {[%emt 0:04:37]} g6 {[%emt 0:03:05]} 9. e5 {[%emt 0:01:16]} dxe5 {[%emt 0:01:47]} 10. Nxe5 {[%emt 0:00:23]} Qc7 {[%emt 0:11:19]} 11. Bf4 {[%emt 0:15:09]} Qb7 {[%emt 0:02:19]} 12. Nc3 {[%emt 0:04:37]} Bg7 {[%emt 0:14:54]} 13. Na4 {[%emt 0:00:41]} Bf5 {[%emt 0:11:54]} 14. Qe3 {[%emt 0:09:53]} O-O {[%emt 0:05:28]} 15. Bh6 {[%emt 0:02:54]} Bxh6 {[%emt 0:02:38]} 16. Qxh6 {[%emt 0:00:25]} Ng4 {[%emt 0:00:41]} 17. Nxg4 {[%emt 0:00:41]} Bxg4 {[%emt 0:00:02]} 18. Rfe1 {[%emt 0:00:49]} Rfe8 {[%emt 0:02:00]} 19. Re4 {[%emt 0:00:47]} f5 {[%emt 0:01:45]} 20. Re5 {[%emt 0:01:38]} Rad8 {[%emt 0:02:14]} 21. Rae1 {[%emt 0:00:36]} Rd1 {[%emt 0:00:30]} 22. b3 {[%emt 0:07:54]} Rxe1+ {[%emt 0:03:28]} 23. Rxe1 {[%emt 0:00:02]} e5 {[%emt 0:01:27]} 24. h3 {[%emt 0:03:27]} Qb4 {[%emt 0:01:19]} 25. Rc1 {[%emt 0:05:10]} Bh5 {[%emt 0:02:12]} 26. f3 {[%emt 0:02:35]} f4 {[%emt 0:00:20]} 27. Rd1 {[%emt 0:01:44]} a5 {[%emt 0:04:16]} 28. Qg5 {[%emt 0:02:56]} Qe7 {[%emt 0:01:14]} 29. Qxe7 {[%emt 0:00:26]} Rxe7 {[%emt 0:00:01]} 30. Rd6 {[%emt 0:00:20]} e4 {[%emt 0:01:21]} 31. fxe4 {[%emt 0:00:02]} Rxe4 {[%emt 0:01:51]} 32. Rxc6 {[%emt 0:00:09]} Re1+ {[%emt 0:00:58]} 33. Kf2 {[%emt 0:00:56]} Re2+ {[%emt 0:00:25]} 34. Kf1 {[%emt 0:01:10]} Rxa2 {[%emt 0:00:18]} 35. Re6 {[%emt 0:02:34]} Kf7 {[%emt 0:01:04]} 36. Re1 {[%emt 0:03:36]} g5 {[%emt 0:00:45]} 37. Rb1 {[%emt 0:02:22]} Bg6 {[%emt 0:00:28]} 38. Re1 {[%emt 0:03:31]} h5 {[%emt 0:01:58]} 39. Nc3 {[%emt 0:02:08]} Rb2 {[%emt 0:00:36]} 40. Nd5 {[%emt 0:00:09]} Rxb3 {[%emt 0:01:23]} 41. Re7+ {[%emt 0:30:07]} Kf8 {[%emt 0:30:43]} 42. Ra7 {[%emt 0:03:31]} Bd3+ {[%emt 0:01:48]} 43. Ke1 {[%emt 0:01:25]} Bxc4 {[%emt 0:00:33]} 44. Rxa5 {[%emt 0:00:41]} Bxd5 {[%emt 0:00:48]} 45. Rxd5 {[%emt 0:00:02]} Rg3 {[%emt 0:01:12]} 46. h4 {[%emt 0:01:20]} gxh4 {[%emt 0:01:36]} 47. Rxh5 {[%emt 0:00:14]} 1/2-1/2

[Event "36th German Seniors-ch-65 2024"]
[Site "Bad Wildungen"]
[Date "2024.08.25"]
[Round "3.18"]
[White "Hanisch, Friedrich"]
[Black "Koehler, Gerhard"]
[Result "0-1"]
[ECO "A60"]
[WhiteElo "2012"]
[BlackElo "2210"]
[Annotator "RC"]
[PlyCount "70"]
[EventDate "2024.08.22"]
[EventType "swiss"]
[EventCountry "GER"]
[SourceTitle "playchess.com"]
[Source "ChessBase"]
[SourceQuality "1"]
[TimeControl "40/5400+30:1800+30"]

1. d4 {[%emt 0:00:06]} Nf6 {[%emt 0:00:11]} 2. c4 {[%emt 0:00:47]} e6 {[%emt 0:00:54]} 3. Nc3 {[%emt 0:00:52]} c5 {[%emt 0:01:40]} 4. d5 {[%emt 0:00:51]} exd5 {[%emt 0:01:23]} 5. cxd5 {[%emt 0:00:11]} d6 {[%emt 0:00:10]} 6. e4 {[%emt 0:01:29]} Be7 {[%emt 0:00:14]} 7. Be2 {[%emt 0:05:56]} O-O {[%emt 0:00:36]} 8. Nf3 {[%emt 0:00:38]} a6 {[%emt 0:01:32]} 9. a4 {[%emt 0:01:03]} Re8 {[%emt 0:00:22]} 10. O-O {[%emt 0:01:16]} Bf8 {[%emt 0:01:32]} 11. Qc2 {[%emt 0:04:44]} Bg4 {[%emt 0:06:49]} 12. h3 {[%emt 0:05:21]} Bxf3 {[%emt 0:01:05]} 13. Bxf3 {[%emt 0:00:15]} Nbd7 {[%emt 0:00:52]} 14. Bf4 {[%emt 0:05:55]} g6 {[%emt 0:16:36]} 15. Rfe1 {[%emt 0:17:40]} Ne5 {[%emt 0:07:38]} 16. Bxe5 {[%emt 0:03:46]} Rxe5 {[%emt 0:01:16]} 17. g3 {[%emt 0:12:40]} Re8 {[%emt 0:01:01]} 18. Re2 {[%emt 0:02:30]} Nd7 {[%emt 0:01:31]} 19. Bg2 {[%emt 0:02:12]} Qa5 {[%emt 0:01:42]} 20. Ra3 {[%emt 0:01:28]} Bg7 {[%emt 0:00:42]} 21. Nd1 {[%emt 0:03:08]} h5 {[%emt 0:14:11]} 22. Ne3 {[%emt 0:01:21]} Qd8 {[%emt 0:00:47]} 23. Nc4 {[%emt 0:01:10]} Ne5 {[%emt 0:01:05]} 24. Nxe5 {[%emt 0:03:38]} Bxe5 {[%emt 0:00:15]} 25. Qc4 {[%emt 0:04:47]} h4 {[%emt 0:03:08]} 26. g4 {[%emt 0:04:35]} Qa5 {[%emt 0:14:06]} 27. Qc2 {[%emt 0:03:23]} Reb8 {[%emt 0:03:13]} 28. Bf1 {[%emt 0:03:18]} Qd8 {[%emt 0:00:39]} 29. Qd3 {[%emt 0:02:01]} Qf6 {[%emt 0:00:55]} 30. Ra2 {[%emt 0:01:32]} Qf4 {[%emt 0:02:05]} 31. Bg2 {[%emt 0:00:35]} b5 {[%emt 0:00:54]} 32. axb5 {[%emt 0:01:10]} axb5 {[%emt 0:00:08]} 33. Rxa8 {[%emt 0:01:03]} Rxa8 {[%emt 0:00:09]} 34. Re1 {[%emt 0:02:49]} c4 {[%emt 0:01:00]} 35. Qb1 {[%emt 0:01:03]} Qd2 {[%emt 0:02:07]} 0-1